bitfinex/quotes_ETHUSD_20250511
["timestamp","ask_amount","ask_price","bid_price","bid_amount"]
[1746924658400,4.156,2547.2,2546.7,10.15240773]
[1746924659308,8.07361139,2547.4,2546.7,10.11314616]
[1746924659607,0.55,2547.1,2546.7,8.7733]
[1746924659808,3.92649599,2546.8,2546.6,4.169]
[1746924660110,3.92665017,2546.7,2546.6,4.169]
[1746924660327,3.92742125,2546.2,2546.0,18.296]
[1746924660522,3.92812868,2545.8,2545.6,4.171]
[1746924660680,4.75148404,2545.9,2545.2,1.0]
[1746924660880,3.93159032,2543.5,2543.4,0.20490037]
[1746924661079,3.9317449,2543.4,2542.2,10.14737545]
[1746924661277,4.144,2543.5,2542.6,4.171]
[1746924661474,3.93112666,2543.8,2542.6,4.171]
[1746924661679,3.92957629,2544.9,2543.4,0.7769]
[1746924661927,0.0344,2545.1,2543.4,0.7769]
[1746924661928,3.92980652,2544.7,2543.4,6.29974987]
[1746924662241,0.0344,2545.1,2543.4,4.9882162]
[1746924662380,8.0344,2545.1,2543.4,4.9882162]
[1746924662730,3.56622106,2544.8,2543.4,4.9489]
[1746924662932,3.56622106,2544.4,2543.4,4.9489]
[1746924663223,3.92958189,2544.8,2543.3,7.85717528]
[1746924663224,3.9317449,2543.4,2543.3,7.85717528]
[1746924663524,8.0737449,2543.4,2543.3,7.85717528]
[1746924663942,3.93058449,2544.2,2543.3,7.85717528]
[1746924664090,3.56622106,2544.1,2543.3,12.02917528]
[1746924664286,3.9317449,2543.4,2543.3,7.85717528]
[1746924664541,12.7553449,2543.4,2543.3,7.85717528]
[1746924664825,0.8236,2543.4,2542.2,0.7769]
[1746924665044,3.93264123,2542.9,2542.3,4.21232957]
[1746924665182,3.93260007,2542.9,2542.3,4.173]
[1746924665385,3.93279497,2542.8,2542.3,4.173]
[1746924665594,3.93295155,2542.7,2542.3,4.173]
[1746924665818,3.93323415,2542.5,2542.3,4.173]
[1746924666023,7.49890699,2542.8,2542.3,4.173]
[1746924666211,3.56622106,2542.8,2542.3,4.173]
[1746924666643,7.49890984,2542.8,2542.3,4.173]
[1746924666829,3.93254182,2542.9,2542.3,4.173]
[1746924667028,3.56622106,2543.2,2542.3,4.173]
[1746924667329,3.93329137,2542.4,2542.3,4.173]
[1746924667654,3.93329137,2542.4,2542.2,0.7769]
[1746924667655,3.93341916,2542.4,2542.2,4.173]
[1746924667862,3.9328273,2542.7,2542.2,4.173]
[1746924668020,3.93344609,2542.3,2542.2,4.173]
[1746924668223,3.93369739,2542.2,2541.8,0.7769]
[1746924668438,3.93369739,2542.2,2541.9,4.175]
[1746924668637,3.9339103,2542.0,2541.8,0.7769]
[1746924668926,3.56622106,2542.4,2541.7,4.175]
[1746924669172,3.56622106,2542.4,2541.7,14.0457438]
[1746924669323,0.1942648,2543.1,2541.8,0.03933258]
[1746924669324,3.93265154,2542.9,2541.8,0.03933258]
[1746924669648,4.136,2543.3,2541.9,0.7769]
[1746924669649,7.49812506,2543.3,2541.9,0.7769]
[1746924669821,3.56622106,2543.7,2542.1,0.7769]
[1746924670021,3.56622106,2543.7,2542.2,0.03932306]
[1746924670242,3.56622106,2543.7,2542.3,0.7531]
[1746924670444,3.93143576,2543.6,2542.4,0.03932307]
[1746924670629,3.56622106,2543.7,2542.6,8.0]
[1746924670952,0.55,2543.2,2542.3,0.7531]
[1746924671124,0.55,2543.2,2542.4,4.176]
[1746924671329,3.93230332,2543.1,2542.5,0.0393277]
[1746924672049,3.9324092,2543.0,2542.4,4.66891]
[1746924672254,3.9324092,2543.0,2542.4,4.176]
[1746924672423,0.55,2543.1,2542.4,4.176]
[1746924672622,0.55,2543.1,2542.5,0.03932614]
[1746924673040,0.55,2543.2,2542.4,4.176]
[1746924673228,3.93268975,2542.8,2542.4,4.176]
[1746924673436,4.48179837,2543.4,2542.4,4.176]
[1746924673637,3.93259829,2542.9,2542.4,4.176]
[1746924673852,3.9325981,2542.9,2542.4,4.176]
[1746924674056,3.93271751,2542.8,2542.4,4.176]
[1746924674266,0.55,2543.0,2542.3,0.7531]
[1746924674436,4.48360081,2542.2,2542.1,4.176]
[1746924674769,3.93350297,2542.3,2542.1,4.176]
[1746924674968,3.93352851,2542.3,2542.1,4.176]
[1746924675371,0.55,2542.2,2542.1,4.176]
[1746924675866,3.9339774,2542.0,2541.7,8.0]
[1746924676065,0.55,2542.1,2541.6,18.315]
[1746924676268,5.8632691,2542.1,2541.3,0.7965]
[1746924676467,3.93497856,2541.4,2541.0,4.176]
[1746924676770,3.93424889,2541.8,2541.1,0.7965]
[1746924676974,8.29827333,2542.5,2541.2,0.03934693]
[1746924677136,3.93387097,2542.1,2541.1,8.7965]
[1746924677481,0.55,2541.6,2541.3,8.0]
[1746924677630,3.93417136,2541.9,2541.4,0.03934996]
[1746924677829,4.73115337,2541.9,2540.6,14.9445]
[1746924678034,0.55,2541.7,2540.7,4.177]
[1746924678269,3.9342116,2541.9,2540.8,0.03935113]
[1746924678564,0.55,2542.1,2540.8,8.03935113]
[1746924678565,3.93430843,2541.8,2540.8,8.03935113]
[1746924678741,0.55,2542.0,2540.8,8.03935113]
[1746924678948,9.4392691,2542.2,2540.8,8.03935113]
[1746924678949,3.9345901,2541.6,2540.8,8.03935113]
[1746924679133,4.48407334,2541.9,2540.9,1.22163511]
[1746924679340,0.55,2541.9,2540.7,4.177]
[1746924679663,0.55,2541.7,2540.8,0.03935099]
[1746924679851,0.55,2541.7,2540.9,0.7965]
[1746924680061,3.93463918,2541.6,2541.0,8.0]
[1746924680231,0.55,2541.9,2541.0,8.0]
[1746924680534,4.42027333,2542.5,2541.1,0.82854801]
[1746924680735,3.93338594,2542.4,2541.1,0.82854801]
[1746924680956,0.55,2542.3,2541.1,0.82854801]
[1746924681355,0.55,2542.4,2541.1,0.7892]
[1746924681670,0.55,2542.2,2541.3,8.0]
[1746924681870,0.55,2542.2,2541.3,8.03934788]
[1746924682040,5.3132691,2542.3,2541.3,8.03934788]
[1746924682041,3.93427101,2541.8,2541.3,8.03934788]
[1746924682236,3.93437932,2541.7,2541.3,8.0]
[1746924682573,0.55,2542.1,2541.4,4.125]
[1746924682872,0.55,2542.0,2541.4,4.125]
[1746924683071,0.55,2542.0,2541.5,8.0]
[1746924683241,3.93364542,2542.2,2541.5,8.03934375]
[1746924683434,3.93378271,2542.1,2541.5,8.03934375]
[1746924683638,3.93350989,2542.3,2541.5,8.03934375]
[1746924683875,4.48363996,2542.2,2541.5,8.03934375]
[1746924684084,0.55,2542.0,2541.5,8.0]
[1746924684266,0.55,2542.0,2541.4,4.125]
[1746924684465,0.55,2542.0,2541.1,0.7892]
[1746924684466,3.93514874,2541.2,2541.1,0.7892]
[1746924684684,3.93540162,2541.1,2540.9,4.126]
[1746924684899,3.93545848,2541.0,2540.9,4.126]
[1746924685196,4.48545848,2541.0,2540.9,4.126]
[1746924685372,9.24806331,2541.5,2540.9,4.126]
[1746924685572,0.55,2541.2,2540.9,4.126]
[1746924686294,4.48505928,2541.3,2540.9,4.126]
[1746924686695,0.55,2541.4,2540.9,4.126]
[1746924687072,0.7689,2541.9,2540.8,0.03935557]
[1746924687286,8.04726483,2541.8,2541.0,4.126]
[1746924687597,8.04725781,2541.8,2541.1,0.03935061]
[1746924687798,0.55,2541.7,2541.1,0.03935061]
[1746924688163,4.48437837,2541.7,2541.0,4.126]
[1746924688591,3.93427547,2541.8,2541.1,8.0]
[1746924688794,3.93427547,2541.8,2541.1,8.03935045]
[1746924689007,0.55,2541.7,2541.1,8.03935045]
[1746924689201,4.48418381,2541.9,2541.2,0.7887]
[1746924689407,4.48410892,2541.9,2541.2,0.7887]
[1746924689707,0.3512365,2541.8,2541.2,0.7887]
[1746924690130,0.3512365,2541.8,2541.3,0.03934702]
[1746924690321,0.3512365,2541.8,2541.3,0.03934452]
[1746924690525,0.3512365,2541.8,2541.3,1.04380248]
[1746924690820,0.3512365,2541.8,2541.4,0.8315]
[1746924691001,0.3512365,2541.8,2541.5,0.03933983]
[1746924691528,3.93357691,2542.3,2541.4,0.8315]
[1746924691722,3.93361331,2542.2,2541.5,0.0393398]
[1746924691903,3.93361331,2542.2,2541.4,0.8315]
[1746924692103,4.108,2542.7,2541.4,0.8315]
[1746924692304,7.68897256,2542.7,2541.4,0.8315]
[1746924692516,3.93355848,2542.3,2541.4,0.8315]
[1746924692914,0.35324876,2542.2,2541.4,0.8315]
[1746924693114,3.93401038,2542.0,2541.4,0.8315]
[1746924693697,0.55,2542.1,2541.4,0.87084245]
[1746924693933,0.35324876,2541.9,2541.5,4.127]
[1746924695001,0.35324876,2541.8,2541.5,4.16634217]
[1746924696007,0.35324876,2541.8,2541.5,4.66612639]
[1746924696220,3.93366673,2542.2,2541.5,4.66612639]
[1746924696533,3.58097256,2542.3,2541.5,4.66612639]
[1746924696834,3.93389382,2542.1,2541.6,0.8289]
[1746924697212,0.55,2542.1,2541.6,0.8289]
[1746924697413,3.93448292,2541.7,2541.5,4.127]
[1746924697613,0.55,2541.9,2541.5,4.127]
[1746924697809,0.35415767,2541.8,2541.5,4.127]
[1746924698015,3.93446992,2541.7,2541.5,4.127]
[1746924698253,0.35415767,2541.8,2541.5,4.127]
[1746924698448,4.28843998,2541.8,2541.5,4.127]
[1746924698734,3.93447984,2541.7,2541.4,4.127]
[1746924698904,4.13097256,2541.6,2541.4,4.127]
[1746924699099,3.93468424,2541.5,2541.4,4.127]
[1746924699304,4.69691363,2541.5,2541.4,4.127]
[1746924699746,3.9349939,2541.3,2540.8,4.127]
[1746924699902,0.55,2541.0,2540.7,4.127]
[1746924701141,3.58097256,2541.1,2540.7,4.127]
[1746924701142,4.48576826,2540.8,2540.7,4.127]
[1746924701702,0.55,2540.8,2540.7,4.127]
[1746924702236,4.83992593,2540.8,2540.7,4.127]
[1746924702403,0.90415767,2540.8,2540.7,4.127]
[1746924702604,4.83992593,2540.8,2540.7,4.127]
[1746924704808,0.90415767,2540.8,2540.7,4.127]
[1746924705008,0.35415767,2540.8,2540.7,4.127]
[1746924705335,0.90415767,2540.8,2540.7,4.127]
[1746924706510,0.55,2540.7,2539.5,0.8249]
[1746924706747,4.13097256,2540.7,2539.6,4.16736233]
[1746924706950,4.13097256,2540.7,2539.7,0.8249]
[1746924707114,4.13097256,2540.7,2539.8,4.16736448]
[1746924707542,0.35415767,2540.6,2539.8,4.16736448]
[1746924707740,0.55,2540.4,2539.8,4.128]
[1746924707930,0.55,2540.5,2539.8,4.128]
[1746924708249,3.93695863,2540.1,2539.8,4.128]
[1746924708453,3.93704547,2540.0,2539.8,4.128]
[1746924708853,3.9369207,2540.1,2539.8,4.128]
[1746924709068,3.58097256,2540.0,2539.6,4.082]
[1746924709953,3.58097256,2540.0,2539.6,4.57269]
[1746924710154,3.58097256,2540.3,2539.6,4.57269]
[1746924710331,3.58097256,2540.4,2539.6,4.57269]
[1746924710515,0.90101169,2540.3,2539.6,4.57269]
[1746924710722,0.90101169,2540.3,2539.7,0.0393696]
[1746924710924,4.83756853,2540.3,2539.6,4.57269]
[1746924711143,0.90101169,2540.3,2539.7,0.4966386]
[1746924711356,4.83764287,2540.3,2539.7,0.4966386]
[1746924711568,4.48678331,2540.2,2539.6,4.082]
[1746924711868,0.55,2540.2,2539.6,4.082]
[1746924712066,4.48674054,2540.2,2539.6,4.082]
[1746924712264,0.55,2540.3,2539.7,0.03937162]
[1746924712558,3.58097256,2540.4,2539.8,0.8249]
[1746924712951,3.93664273,2540.3,2539.8,0.8249]
[1746924713123,7.51745371,2540.4,2539.8,0.8249]
[1746924713547,3.58097256,2540.4,2539.8,0.8249]
[1746924713977,0.55,2540.3,2539.8,0.8249]
[1746924714767,4.48655939,2540.3,2539.8,0.8249]
[1746924714975,0.55,2540.3,2539.8,0.8249]
[1746924715991,4.48656938,2540.3,2539.8,0.8249]
[1746924716293,0.55,2540.3,2539.8,0.8249]
[1746924716647,0.55,2540.3,2539.2,14.161]
[1746924716648,0.55,2540.3,2539.4,0.8253]
[1746924716849,4.48724623,2539.9,2539.5,4.084]
[1746924717383,0.55,2539.9,2539.5,4.084]
[1746924717585,3.58097256,2540.0,2539.5,4.084]
[1746924717951,0.55,2539.9,2539.5,4.084]
[1746924718162,4.48725989,2539.9,2539.5,4.084]
[1746924718888,4.067,2539.8,2539.5,4.084]
[1746924719793,3.58097256,2540.0,2539.6,8.0]
[1746924720198,3.58097256,2540.4,2539.6,8.0]
[1746924720373,3.93657908,2540.3,2539.7,0.03937334]
[1746924720573,3.93670636,2540.2,2539.6,8.0]
[1746924720802,3.93670636,2540.2,2539.6,9.34041677]
[1746924721016,3.93694425,2540.1,2539.6,8.0]
[1746924721189,4.064,2540.5,2539.4,0.8253]
[1746924721190,3.93762046,2539.7,2539.4,0.8253]
[1746924721384,1.3746,2539.2,2538.1,0.8268]
[1746924721602,3.58097256,2538.5,2538.1,0.8268]
[1746924721805,7.52045189,2538.5,2538.1,0.8268]
[1746924722185,3.58097256,2538.5,2538.1,0.8268]
[1746924722390,3.58097256,2538.5,2537.4,0.8268]
[1746924722391,3.93980944,2538.2,2537.4,0.8268]
[1746924722621,3.58097256,2538.0,2537.4,0.8268]
[1746924722800,3.58097256,2538.0,2537.4,9.31788]
[1746924723003,3.58097256,2538.0,2537.5,0.03940115]
[1746924723311,3.58097256,2538.0,2537.4,1.31788]
[1746924723626,7.52112238,2538.0,2537.4,0.8268]
[1746924723827,3.58097256,2538.0,2537.4,0.8268]
[1746924724000,3.58097256,2538.0,2537.4,0.86620643]
[1746924724207,7.52110502,2538.0,2537.4,0.8268]
[1746924724601,3.58097256,2538.0,2537.3,4.084]
[1746924724808,0.55,2538.2,2537.4,0.44780691]
[1746924725291,4.48990148,2538.2,2537.4,8.44780691]
[1746924725590,7.63897256,2538.3,2537.4,8.03940691]
[1746924725806,0.55,2538.2,2537.5,0.7941]
[1746924726113,0.55,2538.2,2537.6,0.03940396]
[1746924726428,0.55,2538.2,2537.5,0.83350319]
[1746924726839,8.07133551,2537.9,2537.5,0.7941]
[1746924727041,4.13097256,2537.9,2537.5,0.7941]
[1746924727250,1.1128025,2538.6,2537.5,0.7941]
[1746924727410,3.94051819,2537.8,2537.3,4.084]
[1746924727610,7.52129735,2537.9,2537.3,4.084]
[1746924727942,3.58097256,2537.9,2537.3,4.084]
[1746924728141,3.94082021,2537.6,2537.3,4.084]
[1746924728346,0.55,2537.3,2536.2,0.19080216]
[1746924728513,3.58097256,2536.9,2536.3,0.7819]
[1746924728707,4.13097256,2537.3,2536.4,0.03942036]
[1746924728946,3.58097256,2537.3,2536.5,0.7819]
[1746924729148,3.58097256,2537.3,2536.6,0.03941418]
[1746924729633,3.58097256,2538.1,2536.7,0.7819]
[1746924730018,3.58097256,2538.1,2537.0,0.7819]
[1746924730219,3.58097256,2538.1,2537.2,0.7819]
[1746924730618,4.05,2538.3,2537.3,0.03940083]
[1746924730812,4.05,2538.3,2537.4,0.7819]
[1746924731249,3.93979985,2538.2,2537.4,0.7819]
[1746924731452,4.4903875,2537.9,2537.1,4.8679]
[1746924731744,3.58097256,2538.0,2537.3,8.0]
[1746924732121,7.521106,2538.0,2537.3,8.0]
[1746924732347,3.58097256,2538.0,2537.3,8.0]
[1746924732583,3.58097256,2538.4,2537.4,0.03940438]
[1746924732734,3.93876396,2538.9,2537.5,0.7819]
[1746924733069,3.58097256,2539.0,2537.6,0.82129576]
[1746924733417,7.51956716,2539.0,2537.6,0.7819]
[1746924733617,3.58097256,2539.0,2537.6,0.7819]
[1746924733856,3.58097256,2539.0,2537.8,0.7819]
[1746924734074,7.51956871,2539.0,2537.9,0.7819]
[1746924734275,4.48871361,2538.9,2538.1,8.0]
[1746924734486,0.55,2538.7,2538.1,8.03939306]
[1746924734869,3.9394432,2538.5,2538.1,8.0]
[1746924735039,0.55,2538.3,2538.0,4.087]
[1746924735246,3.93982927,2538.2,2538.0,4.087]
[1746924735440,0.55,2538.5,2538.0,4.087]
[1746924735640,3.93995508,2538.1,2538.0,4.087]
[1746924736041,4.48995508,2538.1,2538.0,4.087]
[1746924736390,4.592,2538.1,2538.0,4.087]
[1746924736680,3.58097256,2538.2,2538.0,4.087]
[1746924736974,3.58097256,2538.9,2538.1,8.7819]
[1746924737141,3.58097256,2538.9,2538.2,0.0393916]
[1746924737341,3.58097256,2538.9,2538.1,8.7819]
[1746924737786,3.58097256,2538.9,2538.2,0.03939039]
[1746924738075,3.58097256,2538.9,2538.2,1.37108943]
[1746924738261,3.93829845,2539.2,2538.2,1.37108943]
[1746924738262,4.039,2539.2,2538.3,0.7819]
[1746924738773,7.51910845,2539.3,2538.3,0.7819]
[1746924739075,7.61897256,2539.3,2538.3,0.7819]
[1746924739262,3.9384757,2539.1,2538.3,0.7819]
[1746924739437,0.55,2539.0,2538.4,0.03939056]
[1746924739762,4.036,2539.7,2538.5,0.7819]
[1746924739962,3.58097256,2539.4,2538.6,0.7819]
[1746924740156,3.93896893,2538.8,2538.2,0.7957]
[1746924740352,4.48877162,2538.9,2538.2,0.7957]
[1746924740664,0.55,2538.9,2538.3,4.037]
[1746924741374,3.58097256,2539.0,2538.3,6.78139931]
[1746924741578,0.55,2539.2,2538.4,8.03938997]
[1746924741780,0.55,2539.2,2538.5,0.7957]
[1746924742080,3.93848793,2539.1,2538.5,0.7957]
[1746924742281,7.61397256,2539.4,2538.6,0.03938728]
[1746924742480,7.61397256,2539.4,2538.6,0.56700753]
[1746924742778,0.55,2538.9,2538.3,4.037]
[1746924742943,3.93944193,2538.5,2538.3,4.037]
[1746924743148,0.55,2538.8,2538.3,4.037]
[1746924743351,4.48886875,2538.8,2538.3,4.037]
[1746924743551,0.55,2538.8,2538.3,4.037]
[1746924743849,3.93912884,2538.7,2538.3,4.037]
[1746924744103,3.93927288,2538.6,2538.3,4.037]
[1746924744488,0.55,2538.4,2538.2,0.7957]
[1746924744682,0.55,2538.4,2538.1,14.178]
[1746924744872,0.55,2538.5,2538.1,14.178]
[1746924745202,3.58097256,2538.6,2538.1,14.178]
[1746924745410,7.52024618,2538.6,2538.1,14.178]
[1746924745708,3.93944414,2538.5,2538.1,14.178]
[1746924746070,11.5471928,2538.6,2538.1,14.178]
[1746924746267,7.60797256,2538.6,2538.1,14.178]
[1746924746515,4.027,2538.6,2538.1,14.178]
[1746924746811,3.93896927,2538.8,2538.1,16.07907]
[1746924747020,3.58097256,2539.0,2538.3,0.8045]
[1746924747173,4.024,2539.0,2538.4,0.03938981]
[1746924747602,3.93840337,2539.1,2538.4,0.03938981]
[1746924747921,3.9390239,2538.7,2538.3,0.8045]
[1746924748210,0.55,2538.8,2538.3,0.8045]
[1746924748512,3.93857185,2539.0,2538.3,0.8045]
[1746924748663,0.55,2538.8,2538.3,0.8045]
[1746924748870,4.48889792,2538.8,2538.3,0.8045]
[1746924749275,3.9394322,2538.5,2538.3,0.8045]
[1746924749597,0.55,2538.4,2538.2,4.037]
[1746924749796,3.93925088,2538.6,2538.2,4.037]
[1746924749997,0.55,2538.7,2538.2,4.037]
[1746924750171,3.93917907,2538.6,2538.2,4.037]
[1746924750371,3.93937364,2538.5,2538.2,4.037]
[1746924750808,0.55,2538.7,2538.2,4.037]
[1746924751288,3.93964464,2538.3,2538.2,4.037]
[1746924751987,3.93995392,2538.2,2537.7,0.7907]
[1746924752197,3.94026904,2537.9,2537.7,0.7907]
[1746924752581,7.52092764,2538.1,2537.4,4.8287]
[1746924753127,4.13097256,2537.7,2537.1,0.7907]
[1746924753792,0.55,2537.6,2537.1,0.7907]
[1746924753995,3.94114485,2537.4,2537.0,18.215]
[1746924754396,0.55,2537.3,2537.0,4.038]
[1746924754626,0.55,2537.1,2537.0,4.038]
[1746924754940,4.49137094,2537.2,2537.0,4.038]
[1746924755087,0.55,2537.2,2537.0,4.038]
[1746924755289,0.55,2537.2,2536.5,4.8287]
[1746924755519,0.55,2537.2,2536.5,0.7907]
[1746924755823,0.55,2536.8,2536.2,0.7907]
[1746924756121,4.011,2536.7,2536.1,4.038]
[1746924756294,0.55,2536.6,2536.1,4.038]
[1746924756482,0.55,2536.4,2535.9,0.7907]
[1746924756682,3.9428019,2536.3,2535.9,0.7907]
[1746924756920,0.55,2536.2,2535.5,4.8287]
[1746924757099,0.55,2536.0,2535.5,4.8287]
[1746924757294,0.55,2536.0,2535.5,0.7907]
[1746924757502,3.58097256,2536.1,2535.5,0.7907]
[1746924757727,3.58097256,2536.5,2535.6,0.03943528]
[1746924757899,4.008,2536.2,2535.6,0.03943528]
[1746924758087,3.94247872,2536.5,2535.7,0.7907]
[1746924758288,0.55,2536.3,2535.7,0.7907]
[1746924758597,8.0,2536.6,2535.7,0.7907]
[1746924758814,3.58097256,2536.8,2535.8,0.03943297]
[1746924758815,0.55,2536.5,2535.8,0.03943297]
[1746924758989,8.0,2536.7,2535.9,0.7622]
[1746924759542,3.58097256,2536.8,2535.9,0.7622]
[1746924759732,0.55,2536.6,2535.9,0.7622]
[1746924759937,3.94255886,2536.5,2535.9,0.7622]
[1746924760239,0.55,2536.4,2535.9,0.7622]
[1746924760552,7.58597256,2537.2,2536.1,0.7622]
[1746924760843,7.58597256,2537.2,2536.2,0.52358125]
[1746924761003,4.005,2537.2,2536.3,0.7622]
[1746924762052,12.41117256,2537.6,2536.2,0.48416305]
[1746924762053,4.003,2537.4,2536.5,0.7622]
[1746924762320,0.55,2537.1,2536.5,0.7622]
[1746924762518,0.55,2536.8,2536.5,0.7622]
[1746924762727,0.55,2537.0,2536.5,0.7622]
[1746924763245,0.55,2536.7,2536.2,0.7622]
[1746924763948,0.55,2536.8,2536.2,1.24242]
[1746924764158,0.8302,2537.8,2536.3,0.801626]
[1746924764449,0.55,2537.5,2536.4,0.7622]
[1746924764649,7.52226372,2537.3,2536.4,3.104942]
[1746924764853,3.58097256,2537.3,2536.5,0.03941965]
[1746924765024,3.58097256,2537.3,2536.4,3.104942]
[1746924765363,7.52224441,2537.3,2536.4,3.104942]
[1746924765645,7.58097256,2537.7,2536.6,0.7622]
[1746924765850,7.58097256,2537.7,2536.7,0.48416165]
[1746924766033,3.94105314,2537.4,2536.6,0.7622]
[1746924766426,3.94105314,2537.4,2536.6,8.7622]
[1746924766639,0.55,2537.3,2536.6,8.7622]
[1746924766836,4.13097256,2537.3,2536.6,0.7622]
[1746924767042,0.55,2537.2,2536.6,0.7622]
[1746924767241,3.94164513,2537.1,2536.6,0.7622]
[1746924767443,0.55,2537.5,2536.6,0.7622]
[1746924767653,3.58097256,2537.4,2536.6,0.7622]
[1746924767839,3.94170558,2537.0,2536.6,0.7622]
[1746924768641,3.94193618,2536.9,2536.6,0.7622]
[1746924768846,4.49155493,2537.1,2536.6,0.7622]
[1746924769066,4.49155493,2537.1,2536.3,0.03942348]
[1746924769067,0.55,2537.1,2536.2,14.9472]
[1746924769226,0.55,2537.1,2536.3,3.993]
[1746924769429,0.55,2537.3,2536.3,3.993]
[1746924769823,3.94190334,2536.9,2536.3,3.993]
[1746924770237,3.94198352,2536.8,2536.3,3.993]
[1746924770460,0.55,2537.3,2536.3,3.993]
[1746924770661,0.55,2537.3,2536.4,0.7622]
[1746924770859,3.99,2537.2,2536.4,8.7622]
[1746924771027,0.55,2537.3,2536.5,0.7622]
[1746924771227,4.49120079,2537.3,2536.5,0.7622]
[1746924771541,3.94091563,2537.5,2536.5,0.7622]
[1746924771542,3.99,2537.6,2536.5,0.7622]
[1746924771750,7.93083144,2537.6,2536.6,0.87622]
[1746924771954,3.99,2537.6,2536.6,0.87622]
[1746924772267,8.35170323,2537.8,2536.8,0.7622]
[1746924772469,3.988,2537.7,2536.8,0.7622]
[1746924772669,3.94074476,2537.6,2536.8,0.7622]
[1746924773074,7.92864467,2537.7,2536.8,0.7622]
[1746924773272,3.987,2537.7,2536.9,0.03940965]
[1746924773430,3.58097256,2537.8,2536.9,0.03940894]
[1746924773630,7.56697256,2537.8,2536.8,0.7622]
[1746924774048,11.50741178,2537.8,2536.8,0.7622]
[1746924774873,3.94061881,2537.7,2536.8,0.7622]
[1746924775080,11.50742237,2537.8,2536.8,0.7622]
[1746924775580,7.56697256,2537.8,2536.8,0.7622]
[1746924775777,0.19641059,2538.6,2536.8,0.7622]
[1746924775778,0.8302,2538.7,2536.8,8.7622]
[1746924775980,0.8302,2538.7,2537.0,0.7622]
[1746924775981,3.58097256,2538.4,2537.0,0.7622]
[1746924776274,3.94036677,2537.9,2537.1,3.993]
[1746924776580,3.94051283,2537.8,2537.1,3.993]
[1746924776877,3.58097256,2538.0,2537.3,0.7622]
[1746924777046,7.92170398,2538.3,2537.4,0.03940398]
[1746924777375,3.58097256,2538.4,2537.5,0.7622]
[1746924777581,3.93995592,2538.1,2537.5,0.7622]
[1746924777882,0.55,2538.2,2537.6,0.03940275]
[1746924778253,0.55,2538.2,2537.7,0.7622]
[1746924778456,3.9397615,2538.3,2537.7,0.7622]
[1746924778980,3.58097256,2538.7,2537.8,0.03939951]
[1746924779184,3.58097256,2538.7,2537.9,3.992]
[1746924779185,3.978,2538.6,2537.9,3.992]
[1746924779589,3.9396043,2538.4,2537.9,3.992]
[1746924779795,3.93958044,2538.4,2537.9,3.992]
[1746924779970,3.93933425,2538.5,2537.9,3.992]
[1746924779971,3.93975811,2538.3,2537.9,3.992]
[1746924780166,0.55,2538.5,2537.9,3.992]
[1746924780564,3.58097256,2538.7,2538.0,0.7622]
[1746924780884,3.975,2538.6,2538.1,0.0393955]
[1746924781258,3.93833435,2539.2,2538.2,0.7622]
[1746924781461,3.93844012,2539.1,2538.2,0.7622]
[1746924781653,3.974,2539.4,2538.2,0.7622]
[1746924781858,3.93822171,2539.3,2538.4,0.7622]
[1746924782291,3.974,2539.4,2538.5,0.0393851]
[1746924782496,3.58097256,2539.9,2538.6,0.7622]
[1746924782664,3.58097256,2539.9,2538.8,0.7622]
[1746924782852,2.50335147,2540.1,2538.8,0.7622]
[1746924782853,3.93758317,2539.7,2538.9,0.0393791]
[1746924783058,2.50335147,2540.1,2539.0,0.7622]
[1746924783410,2.50335147,2540.1,2539.1,0.80157509]
[1746924783809,2.50335147,2540.1,2539.1,0.7622]
[1746924784296,1.0,2540.3,2539.1,0.8015727]
[1746924784793,1.0,2540.3,2539.1,0.7622]
[1746924785170,3.93670703,2540.2,2539.3,0.7622]
[1746924785363,1.0,2540.3,2539.5,0.7622]
[1746924785694,1.0,2540.3,2539.7,8.7622]
[1746924786000,1.0,2540.3,2540.0,0.7622]
[1746924786316,1.0,2540.3,2540.2,0.7622]
[1746924787494,1.0,2540.3,2540.2,8.7622]
[1746924787755,1.0,2540.3,2540.2,8.7563]
[1746924788795,1.0,2540.3,2540.2,8.79565918]
[1746924788983,1.0,2540.3,2540.2,11.0926251]
[1746924789180,3.93461864,2541.6,2540.3,0.7563]
[1746924789389,3.93477869,2541.5,2540.4,0.79564855]
[1746924789562,3.93456782,2541.6,2540.4,0.7563]
[1746924789957,7.53997256,2542.0,2540.4,0.7563]
[1746924790157,7.53997256,2542.0,2540.6,0.7563]
[1746924790409,3.93392745,2542.0,2540.9,0.7563]
[1746924790699,3.58097256,2542.5,2540.9,0.7563]
[1746924790880,8.33507256,2543.0,2541.0,0.7563]
[1746924791060,0.7961,2543.0,2541.0,0.7563]
[1746924791260,0.7961,2543.0,2541.2,0.7563]
[1746924791501,3.93265085,2542.9,2541.4,8.7563]
[1746924791697,0.7961,2543.0,2541.6,8.0]
[1746924791862,4.72850128,2543.0,2541.7,0.809]
[1746924792210,3.93214638,2543.2,2541.9,0.809]
[1746924792358,3.94054892,2543.5,2542.1,0.809]
[1746924792558,0.00884254,2543.5,2542.2,0.809]
[1746924792761,3.93196503,2543.3,2542.4,8.0]
[1746924792997,0.00884254,2543.5,2542.6,8.0]
[1746924793202,10.03932403,2543.8,2542.8,0.809]
[1746924793379,3.93146697,2543.6,2542.8,0.809]
[1746924793701,3.93176436,2543.4,2542.9,0.0393172]
[1746924794001,3.9312812,2543.7,2542.8,0.809]
[1746924794209,3.93209071,2543.2,2542.8,0.809]
[1746924794410,3.93251799,2542.9,2542.8,0.809]
[1746924794573,0.55,2543.0,2542.5,4.796]
[1746924794776,4.48232798,2543.1,2542.5,4.796]